bitfinex/quotes_BTCUSD_20260110
["timestamp","ask_amount","ask_price","bid_price","bid_amount"]
[1768016856779,0.02212,90582.0,90579.0,0.04745733]
[1768016857427,0.03,90581.0,90578.0,0.04745733]
[1768016857635,0.00199704,90582.0,90579.0,0.04745733]
[1768016858539,0.02212,90588.0,90581.0,0.04745733]
[1768016858743,0.0110385,90592.0,90581.0,0.04715897]
[1768016858959,0.05525234,90588.0,90581.0,0.04715897]
[1768016859738,0.03,90587.0,90581.0,0.04686063]
[1768016861196,0.03,90587.0,90581.0,0.05790047]
[1768016861309,0.03,90587.0,90581.0,0.04686063]
[1768016865278,0.03,90587.0,90582.0,0.01103972]
[1768016865484,0.03,90587.0,90583.0,0.04745733]
[1768016867089,0.03,90587.0,90583.0,0.05849692]
[1768016867286,0.03,90587.0,90583.0,0.04745733]
[1768016867527,0.03,90587.0,90583.0,0.05849692]
[1768016867699,0.03,90587.0,90585.0,0.04745733]
[1768016867911,0.02212,90588.0,90587.0,4.068e-05]
[1768016868452,0.02212,90590.0,90589.0,0.01103886]
[1768016868665,0.02212,90590.0,90587.0,0.05853712]
[1768016869526,0.03,90589.0,90587.0,0.04749801]
[1768016870934,0.03,90589.0,90587.0,4.068e-05]
[1768016872921,0.02212,90590.0,90587.0,0.04908204]
[1768016874789,0.01103959,90597.0,90587.0,0.04878372]
[1768016874994,0.03,90596.0,90587.0,0.29977837]
[1768016875168,0.03,90596.0,90587.0,0.31081748]
[1768016875754,0.03,90596.0,90587.0,0.29977837]
[1768016876074,0.03,90596.0,90588.0,0.04904136]
[1768016880504,0.04103801,90596.0,90588.0,0.04904136]
[1768016880800,0.04103801,90596.0,90580.0,0.26203461]
[1768016880801,0.000999,90588.0,90580.0,0.25099465]
[1768016880957,0.03,90590.0,90580.0,0.25099465]
[1768016881906,0.03,90589.0,90580.0,0.25069632]
[1768016882465,0.03,90589.0,90583.0,0.04904136]
[1768016882789,0.03315789,90597.0,90583.0,0.04904136]
[1768016883105,0.03,90596.0,90588.0,0.04904136]
[1768016883263,0.04103801,90596.0,90588.0,0.04904136]
[1768016883450,0.03,90596.0,90588.0,0.04904136]
[1768016883654,0.04103801,90596.0,90588.0,0.04904136]
[1768016883886,0.03,90594.0,90588.0,0.04904136]
[1768016885148,0.03,90593.0,90588.0,0.04904136]
[1768016885719,0.03,90593.0,90580.0,0.01103996]
[1768016885720,0.03,90593.0,90580.0,0.04928657]
[1768016885922,0.03,90593.0,90582.0,0.04928657]
[1768016886935,0.04103838,90593.0,90582.0,0.04928657]
[1768016887146,0.03,90593.0,90582.0,0.04928657]
[1768016887290,0.03,90591.0,90582.0,0.04928657]
[1768016889096,0.03,90591.0,90582.0,0.04898824]
[1768016890846,0.03,90590.0,90582.0,0.04898824]
[1768016891956,0.03,90591.0,90582.0,0.04898824]
[1768016893809,0.04103862,90591.0,90582.0,0.04898824]
[1768016894358,0.03,90591.0,90582.0,0.04898824]
[1768016894531,0.03,90590.0,90582.0,0.04898824]
[1768016895537,0.03,90589.0,90582.0,0.04898824]
[1768016896602,0.03,90588.0,90582.0,0.04898824]
[1768016897680,0.03,90587.0,90582.0,0.04898824]
[1768016898680,0.03,90586.0,90582.0,0.04898824]
[1768016898839,0.01103838,90593.0,90582.0,0.04898824]
[1768016899978,0.03,90589.0,90582.0,0.04898824]
[1768016900996,0.03,90592.0,90582.0,0.04898824]
[1768016901774,0.0410385,90592.0,90582.0,0.04898824]
[1768016902332,0.03,90592.0,90582.0,0.04898824]
[1768016902756,0.03,90592.0,90582.0,0.04868991]
[1768016905071,0.0410385,90592.0,90582.0,0.04868991]
[1768016905309,0.01103838,90593.0,90582.0,0.04868991]
[1768016905310,0.03,90590.0,90582.0,0.04868991]
[1768016906435,0.03,90589.0,90582.0,0.04868991]
[1768016907569,0.03,90591.0,90582.0,0.04868991]
[1768016908622,0.01103838,90593.0,90582.0,0.04868991]
[1768016908623,0.03,90590.0,90582.0,0.04868991]
[1768016909824,0.03,90592.0,90582.0,0.04868991]
[1768016910197,0.0410385,90592.0,90582.0,0.04868991]
[1768016911040,0.03,90592.0,90582.0,0.04868991]
[1768016916846,0.03,90591.0,90582.0,0.04868991]
[1768016917944,0.03,90593.0,90582.0,0.04868991]
[1768016921780,0.04103838,90593.0,90582.0,0.04868991]
[1768016922530,0.03,90593.0,90582.0,0.04868991]
[1768016923071,0.03,90592.0,90582.0,0.04868991]
[1768016923815,0.03,90592.0,90582.0,0.05972963]
[1768016924281,0.03,90591.0,90582.0,0.05972963]
[1768016924954,0.03,90591.0,90583.0,0.01103959]
[1768016925369,0.03,90590.0,90582.0,0.04868991]
[1768016926339,0.03,90589.0,90582.0,0.05972963]
[1768016926745,0.03,90589.0,90582.0,0.04868991]
[1768016927150,0.03,90589.0,90582.0,0.05972963]
[1768016927352,0.03,90594.0,90582.0,0.04868991]
[1768016927890,0.03,90594.0,90582.0,0.05972963]
[1768016928410,0.03,90595.0,90582.0,0.05972963]
[1768016928593,0.03,90593.0,90582.0,0.04868991]
[1768016929634,0.03,90592.0,90582.0,0.04868991]
[1768016930154,0.03,90592.0,90582.0,0.05972963]
[1768016930355,0.03,90592.0,90582.0,0.04868991]
[1768016930556,0.03,90594.0,90582.0,0.04868991]
[1768016931709,0.03,90593.0,90582.0,0.04868991]
[1768016932235,0.04103838,90593.0,90582.0,0.04868991]
[1768016932779,0.03,90592.0,90582.0,0.04868991]
[1768016933590,0.03,90589.0,90582.0,0.04868991]
[1768016934387,0.03,90587.0,90582.0,0.04868991]
[1768016935444,0.03,90589.0,90582.0,0.04868991]
[1768016937644,0.03,90588.0,90582.0,0.04868991]
[1768016938673,0.03,90587.0,90582.0,0.04868991]
[1768016939889,0.03,90586.0,90582.0,0.04868991]
[1768016940963,0.03,90585.0,90582.0,0.04868991]
[1768016941179,0.01103862,90591.0,90585.0,4.132e-05]
[1768016941366,0.01103838,90593.0,90585.0,4.132e-05]
[1768016942271,0.03,90592.0,90585.0,4.132e-05]
[1768016942632,0.01103838,90593.0,90585.0,4.132e-05]
[1768016944735,0.03,90592.0,90585.0,4.132e-05]
[1768016945766,0.01103825,90594.0,90585.0,4.132e-05]
[1768016946124,0.04103838,90593.0,90585.0,4.132e-05]
[1768016946330,0.03,90591.0,90585.0,4.132e-05]
[1768016947435,0.03,90592.0,90585.0,4.132e-05]
[1768016948397,0.03,90590.0,90585.0,4.132e-05]
[1768016949570,0.01103838,90593.0,90585.0,4.132e-05]
[1768016949571,0.03,90592.0,90585.0,4.132e-05]
[1768016950128,0.01103838,90593.0,90585.0,4.132e-05]
[1768016950330,0.01094825,90593.0,90585.0,4.132e-05]
[1768016951072,0.04103825,90594.0,90585.0,4.132e-05]
[1768016951271,0.01094824,90593.0,90585.0,4.132e-05]
[1768016951633,0.0110385,90592.0,90585.0,4.132e-05]
[1768016952042,0.01094824,90593.0,90585.0,4.132e-05]
[1768016952987,0.04103838,90593.0,90585.0,4.132e-05]
[1768016956338,0.03,90593.0,90585.0,4.132e-05]
[1768016956785,0.04103838,90593.0,90585.0,4.132e-05]
[1768016957668,0.03,90593.0,90585.0,4.132e-05]
[1768016957868,0.04103838,90593.0,90585.0,4.132e-05]
[1768016958305,0.03,90593.0,90585.0,4.132e-05]
[1768016959447,0.04103838,90593.0,90585.0,4.132e-05]
[1768016960339,0.03,90593.0,90585.0,4.132e-05]
[1768016960886,0.03,90592.0,90585.0,4.132e-05]
[1768016961071,0.03,90592.0,90585.0,4.5e-07]
[1768016961773,0.03,90591.0,90585.0,4.5e-07]
[1768016962212,0.02212,90596.0,90591.0,4.104e-05]
[1768016962413,0.03310137,90596.0,90591.0,4.104e-05]
[1768016962613,0.02206336,90596.0,90591.0,4.104e-05]
[1768016962786,0.03310137,90596.0,90591.0,4.104e-05]
[1768016962991,0.03,90595.0,90591.0,4.104e-05]
[1768016967517,0.10627824,90606.0,90591.0,0.01107966]
[1768016967775,0.02212,90598.0,90591.0,0.01107966]
[1768016968145,0.02212,90598.0,90591.0,4.104e-05]
[1768016971997,0.02212,90598.0,90591.0,0.01107966]
[1768016972181,0.02212,90598.0,90591.0,4.104e-05]
[1768016973884,0.02212,90598.0,90591.0,0.01107966]
[1768016974086,0.02212,90598.0,90591.0,4.104e-05]
[1768016974890,0.02212,90598.0,90590.0,0.01103874]
[1768016975433,0.02212,90598.0,90591.0,0.01103862]
[1768016976515,0.02212,90598.0,90590.0,0.01103874]
[1768016977010,0.02212,90598.0,90589.0,0.06032797]
[1768016977236,0.02212,90598.0,90590.0,0.01103874]
[1768016977715,0.03,90597.0,90592.0,0.0110385]
[1768016977906,0.03,90597.0,90589.0,0.06032797]
[1768016978154,0.03,90597.0,90590.0,0.01103874]
[1768016978342,0.03,90597.0,90591.0,0.01103862]
[1768016978568,0.03,90597.0,90589.0,0.11552223]
[1768016978810,0.03,90597.0,90590.0,0.01103874]
[1768016979208,0.03,90597.0,90589.0,0.06032797]
[1768016979428,0.03,90597.0,90590.0,0.01103874]
[1768016979707,0.03,90597.0,90589.0,0.06032797]
[1768016980127,0.03,90597.0,90590.0,0.01103874]
[1768016980985,0.03,90597.0,90591.0,0.01103862]
[1768016981240,0.03,90597.0,90589.0,0.06032797]
[1768016981655,0.03,90597.0,90590.0,0.01103874]
[1768016981803,0.03,90597.0,90592.0,0.04798332]
[1768016982419,0.0001515,90603.0,90594.0,0.04798332]
[1768016982664,0.0301515,90603.0,90594.0,0.04798332]
[1768016988015,0.0301515,90603.0,90593.0,0.01103838]
[1768016988445,0.0301515,90603.0,90592.0,0.0110385]
[1768016988620,0.0301515,90603.0,90590.0,0.26200153]
[1768016988917,0.0301515,90603.0,90591.0,0.01103862]
[1768016989483,0.0301515,90603.0,90590.0,0.26200153]
[1768016989686,0.0301515,90603.0,90591.0,0.01103862]
[1768016990315,0.0301515,90603.0,90592.0,0.0110385]
[1768016990516,0.0301515,90603.0,90591.0,0.01103862]
[1768016990920,0.0301515,90603.0,90592.0,0.0110385]
[1768016992817,0.0301515,90603.0,90591.0,0.01103862]
[1768016993053,0.0301515,90603.0,90592.0,0.0110385]
[1768016993567,0.0301515,90603.0,90592.0,0.058799]
[1768016994611,0.0301515,90603.0,90594.0,0.0477605]
[1768016994812,0.0301515,90603.0,90599.0,0.0477605]
[1768016995016,0.0001515,90612.0,90600.0,0.0477605]
[1768016995017,0.03,90610.0,90600.0,0.0477605]
[1768016995663,0.03,90610.0,90600.0,0.29872329]
[1768016995898,0.03,90610.0,90600.0,0.0477605]
[1768016996070,0.03,90607.0,90600.0,0.29872329]
[1768016996282,0.03,90607.0,90600.0,0.0477605]
[1768016997001,0.03,90606.0,90600.0,0.0477605]
[1768016998204,0.03,90605.0,90600.0,0.0477605]
[1768016999177,0.03,90604.0,90600.0,0.0477605]
[1768017000196,0.03,90607.0,90600.0,0.0477605]
[1768017001235,0.0110363,90610.0,90600.0,0.0477605]
[1768017001458,0.03,90607.0,90600.0,0.0477605]
[1768017001608,0.01103655,90608.0,90600.0,0.0477605]
[1768017001810,0.0109464,90608.0,90600.0,0.0477605]
[1768017002477,0.03,90606.0,90598.0,0.25096279]
[1768017002684,0.03,90606.0,90596.0,0.29872329]
[1768017003648,0.03,90607.0,90596.0,0.29872329]
[1768017003871,0.03,90607.0,90597.0,0.25096279]
[1768017004525,0.03,90608.0,90597.0,0.25096279]
[1768017006349,0.03,90607.0,90597.0,0.25096279]
[1768017007084,0.0066493,90609.0,90597.0,0.25096279]
[1768017007307,0.0066493,90609.0,90599.0,0.25096279]
[1768017007506,0.03,90608.0,90599.0,0.25096279]
[1768017007709,0.04103655,90608.0,90599.0,0.25096279]
[1768017007909,0.03,90608.0,90599.0,0.25096279]
[1768017008441,0.04103655,90608.0,90599.0,0.25096279]
[1768017011930,0.04103655,90608.0,90599.0,0.25066446]
[1768017012587,0.04103655,90608.0,90599.0,0.25036616]
[1768017012823,0.03,90608.0,90599.0,0.25036616]
[1768017014358,0.03,90607.0,90599.0,0.25036616]
[1768017015508,0.03,90606.0,90599.0,0.25036616]
[1768017015711,0.03,90606.0,90597.0,0.25096279]
[1768017016474,0.03,90605.0,90596.0,0.05879851]
[1768017017067,0.03,90605.0,90596.0,0.0477605]
[1768017017476,0.03,90604.0,90596.0,0.0477605]
[1768017018528,0.03,90603.0,90596.0,0.0477605]
[1768017018878,0.03,90603.0,90595.0,0.01103813]
[1768017019271,0.03,90603.0,90596.0,0.01103801]
[1768017019500,0.04103643,90609.0,90595.0,0.01103813]
[1768017019660,0.0796813,90609.0,90596.0,0.01103801]
[1768017019886,0.09071773,90609.0,90595.0,0.01103813]
[1768017020082,0.0796813,90609.0,90595.0,0.01103813]
[1768017020418,0.03,90607.0,90595.0,0.01103813]
[1768017021384,0.03,90606.0,90595.0,0.01103813]
[1768017021593,0.03,90606.0,90592.0,0.07727231]
[1768017021764,0.03,90606.0,90596.0,0.01103801]
[1768017021911,0.03,90606.0,90592.0,0.02208]
[1768017022114,0.03,90606.0,90593.0,0.05519183]
[1768017022310,0.03,90605.0,90593.0,0.05519183]
[1768017022715,0.03,90605.0,90595.0,0.01103813]
[1768017022916,0.03,90605.0,90596.0,0.01103801]
[1768017023191,0.03,90605.0,90595.0,0.01103813]
[1768017023350,0.03,90608.0,90595.0,0.01103813]
[1768017023564,0.03,90608.0,90596.0,0.01103801]
[1768017023733,0.03,90608.0,90595.0,0.01103813]
[1768017023916,0.03,90608.0,90596.0,0.01103801]
[1768017024312,0.03,90608.0,90595.0,0.01103813]
[1768017024954,0.03,90608.0,90594.0,0.01103825]
[1768017025154,0.03,90606.0,90594.0,0.01103825]
[1768017025355,0.03,90606.0,90595.0,0.01103813]
[1768017025854,0.03,90606.0,90595.0,0.0107398]
[1768017026069,0.03,90605.0,90595.0,0.0107398]
[1768017027182,0.03,90604.0,90595.0,0.0107398]
[1768017028241,0.03,90603.0,90595.0,0.0107398]
[1768017029185,0.03,90603.0,90595.0,0.0104415]
[1768017029368,0.03,90608.0,90595.0,0.0104415]
[1768017030558,0.03,90608.0,90594.0,0.01103825]
[1768017031374,0.03,90608.0,90595.0,0.01103813]
[1768017033687,0.03,90608.0,90596.0,0.01103801]
[1768017033882,0.03,90608.0,90594.0,0.01103825]
[1768017034090,0.03,90608.0,90595.0,0.01103813]
[1768017035740,0.03,90608.0,90595.0,0.01073984]
[1768017035946,0.03,90608.0,90595.0,0.01103813]
[1768017036998,0.03,90608.0,90594.0,0.01103825]
[1768017037205,0.04103655,90608.0,90593.0,0.01103838]
[1768017037551,0.04103655,90608.0,90595.0,0.01103813]
[1768017038442,0.03,90608.0,90595.0,0.01103813]
[1768017039185,0.04103655,90608.0,90594.0,0.01103825]
[1768017040889,0.03,90608.0,90595.0,0.01103813]
[1768017041100,0.04103655,90608.0,90594.0,0.01103825]
[1768017041614,0.03,90606.0,90595.0,0.01103813]
[1768017042148,0.03,90606.0,90594.0,0.01103825]
[1768017042605,0.03,90607.0,90594.0,0.01103825]
[1768017042845,0.03,90607.0,90595.0,0.01103813]
[1768017043181,0.03,90607.0,90594.0,0.01103825]
[1768017046324,0.04766599,90600.0,90594.0,0.01103825]
[1768017046618,0.03,90595.0,90594.0,0.06035634]
[1768017046828,0.01103655,90608.0,90596.0,0.04931809]
[1768017047443,0.03235416,90607.0,90595.0,0.0006465]
[1768017047727,0.01103655,90608.0,90595.0,0.0006465]
[1768017047728,0.03235416,90603.0,90595.0,0.0006465]
[1768017047933,0.03,90596.0,90595.0,0.0006465]
[1768017048233,0.03,90596.0,90595.0,0.04996459]
[1768017048966,0.03,90596.0,90595.0,0.04966631]
[1768017049385,0.03,90596.0,90595.0,0.04936804]
[1768017050006,0.03,90607.0,90595.0,0.04936804]
[1768017050456,0.04103667,90607.0,90595.0,0.04936804]
[1768017051091,0.03,90604.0,90595.0,0.02609754]
[1768017052180,0.03,90603.0,90595.0,0.02609754]
[1768017053137,0.03,90605.0,90595.0,0.02609754]
[1768017053536,0.03,90605.0,90598.0,0.04616875]
[1768017054164,0.03,90604.0,90598.0,0.04587049]
[1768017054998,0.0222315,90612.0,90604.0,0.05720579]
[1768017055224,0.0222315,90612.0,90604.0,0.04557227]
[1768017055526,0.03,90611.0,90604.0,0.04557227]
[1768017056127,0.0300506,90611.0,90604.0,0.04557227]
[1768017056332,5.06e-05,90611.0,90604.0,0.04557227]
[1768017056836,5.06e-05,90611.0,90604.0,0.05660931]
[1768017057085,0.0001515,90612.0,90609.0,0.04616875]
[1768017057301,0.0001515,90612.0,90605.0,0.01103691]
[1768017057302,0.0001515,90612.0,90611.0,0.0459205]
[1768017057550,0.0001515,90612.0,90611.0,0.04562227]
[1768017060888,0.03,90621.0,90618.0,0.04616875]
[1768017061107,0.03,90621.0,90618.0,0.04612726]
[1768017061286,0.03,90621.0,90618.0,0.05716259]
[1768017061858,0.03,90620.0,90618.0,0.04612726]
[1768017062958,0.03,90619.0,90618.0,0.04612726]
[1768017063883,0.03,90627.0,90618.0,0.04612726]
[1768017064759,0.03,90627.0,90618.0,0.03422385]
[1768017065304,0.03,90627.0,90618.0,0.03417913]
[1768017067677,0.03,90627.0,90618.0,0.03413405]
[1768017069993,0.03,90627.0,90618.0,0.03383581]
[1768017070608,0.03,90627.0,90618.0,0.0335376]
[1768017071110,0.03,90627.0,90615.0,0.0110357]
[1768017075112,0.03,90627.0,90616.0,0.01103557]
[1768017075253,0.03,90627.0,90613.0,0.06011719]
[1768017076144,0.03,90627.0,90615.0,0.0110357]
[1768017077177,0.03,90627.0,90614.0,0.01103582]
[1768017078219,0.03,90627.0,90615.0,0.0110357]
[1768017078899,0.03,90627.0,90615.0,0.01099098]
[1768017079497,0.03,90627.0,90614.0,0.01103582]
[1768017080168,0.03,90625.0,90613.0,0.04908125]
[1768017081174,0.03050715,90624.0,90613.0,0.04908125]
[1768017081380,0.03050715,90624.0,90613.0,0.06011719]
[1768017082225,0.00050715,90624.0,90613.0,0.04908125]
[1768017082605,0.03,90620.0,90613.0,0.04908125]
[1768017083572,0.03,90621.0,90613.0,0.04908125]
[1768017083975,0.03,90621.0,90613.0,0.04878304]
[1768017085248,0.03,90620.0,90613.0,0.04878304]
[1768017086195,0.03,90619.0,90613.0,0.04878304]
[1768017086650,0.03,90619.0,90611.0,0.03]
[1768017087365,0.03,90618.0,90611.0,0.03]
[1768017088332,0.03,90620.0,90611.0,0.03]
[1768017090840,0.03,90620.0,90611.0,0.02970179]
[1768017092249,0.04103509,90620.0,90611.0,0.02970179]
[1768017092451,0.03,90618.0,90611.0,0.02970179]
[1768017092661,0.07853241,90612.0,90611.0,0.05006122]
[1768017092872,0.07853241,90612.0,90598.0,0.0001515]
[1768017092873,0.09621786,90610.0,90598.0,0.0001515]
[1768017093076,0.28078858,90608.0,90601.0,0.0331213]
[1768017093278,0.04103655,90608.0,90601.0,0.0331213]
[1768017093472,0.03,90608.0,90601.0,0.0331213]
[1768017093719,0.03,90608.0,90600.0,0.02208]
[1768017094089,0.03,90608.0,90600.0,0.0552013]
[1768017094617,0.03,90607.0,90600.0,0.0552013]
[1768017094876,0.03,90607.0,90600.0,0.0331213]
[1768017095395,0.04853241,90610.0,90600.0,0.0331213]
[1768017095396,0.03,90609.0,90600.0,0.0331213]
[1768017095635,0.03,90606.0,90600.0,0.0331213]
[1768017096500,0.03,90609.0,90600.0,0.0331213]
[1768017099647,0.04103643,90609.0,90600.0,0.0331213]
[1768017100005,0.03,90609.0,90600.0,0.0331213]
[1768017102480,0.04103643,90609.0,90600.0,0.0331213]
[1768017103045,0.03,90606.0,90600.0,0.0331213]
[1768017104416,0.03,90605.0,90600.0,0.0331213]
[1768017105229,0.03,90607.0,90600.0,0.0331213]
[1768017106638,0.03,90606.0,90600.0,0.0331213]
[1768017107739,0.01103655,90608.0,90600.0,0.0331213]
[1768017107740,0.03,90607.0,90600.0,0.0331213]
[1768017108080,0.04103667,90607.0,90600.0,0.0331213]
[1768017108294,0.03,90607.0,90600.0,0.0331213]
[1768017108494,0.04103667,90607.0,90600.0,0.0331213]
[1768017109010,0.03,90607.0,90600.0,0.0331213]
[1768017109264,0.03,90605.0,90600.0,0.0331213]
[1768017109467,0.03,90602.0,90598.0,0.0001515]
[1768017110525,0.04103691,90605.0,90598.0,0.0001515]
[1768017111309,0.03,90603.0,90598.0,0.0001515]
[1768017114131,0.03,90601.0,90598.0,0.0001515]
[1768017115200,0.03,90600.0,90598.0,0.0001515]
[1768017116307,0.03,90599.0,90598.0,0.0001515]
[1768017118175,0.03,90604.0,90598.0,0.0001515]
[1768017118396,0.03,90599.0,90598.0,0.0001515]
[1768017121401,0.03,90599.0,90598.0,0.0002021]
[1768017126356,0.03,90603.0,90598.0,0.0002021]
[1768017127476,0.04103704,90604.0,90598.0,0.0002021]
[1768017127870,0.0410374,90601.0,90598.0,0.0002021]
[1768017129014,0.03,90600.0,90598.0,0.0002021]
[1768017129805,0.03,90604.0,90598.0,0.0002021]
[1768017138986,0.04103704,90604.0,90598.0,0.0002021]
[1768017139363,0.03,90602.0,90598.0,0.0002021]
[1768017140420,0.03,90601.0,90598.0,0.0002021]
[1768017141548,0.04852718,90605.0,90598.0,0.0002021]
[1768017141549,0.03,90600.0,90598.0,0.0002021]
[1768017141726,0.04852718,90605.0,90600.0,0.000999]
[1768017141950,0.01103655,90608.0,90598.0,0.0002021]
[1768017142377,0.03,90609.0,90598.0,0.04739317]
[1768017142574,0.03,90609.0,90600.0,0.05822859]
[1768017143487,0.03,90610.0,90600.0,0.05822859]
[1768017144051,0.03,90610.0,90601.0,0.0110374]
[1768017144263,0.03,90610.0,90602.0,0.01103728]
[1768017144680,0.02208,90611.0,90610.0,0.000999]
[1768017144893,0.07060718,90611.0,90602.0,0.01103728]
[1768017145091,0.07060718,90611.0,90604.0,0.01103704]
[1768017145312,0.07060718,90611.0,90603.0,0.01103716]
[1768017145671,0.02208,90611.0,90603.0,0.01103716]
[1768017145868,0.02208,90611.0,90598.0,0.04739317]
[1768017146082,0.02208,90611.0,90598.0,0.05843094]
[1768017146703,0.04852718,90610.0,90600.0,0.01103752]
[1768017146942,0.02208,90611.0,90600.0,0.01103752]
[1768017147350,0.02208,90611.0,90598.0,0.05843094]
[1768017147557,0.02208,90611.0,90600.0,0.01103752]
[1768017147979,0.02208,90611.0,90598.0,0.05843094]
[1768017148185,0.02208,90611.0,90599.0,0.01103764]
[1768017148601,0.02208,90611.0,90600.0,0.01103752]
[1768017148809,0.02208,90611.0,90599.0,0.01103764]
[1768017151046,0.02208,90611.0,90601.0,0.0110374]
[1768017151252,0.02208,90611.0,90600.0,0.01103752]
[1768017151450,0.02208,90611.0,90601.0,0.0110374]
[1768017151865,0.02208,90611.0,90601.0,0.04719107]
[1768017152266,0.0110357,90615.0,90601.0,0.04719107]
[1768017152487,0.03,90614.0,90601.0,0.04719107]
[1768017152690,0.03,90614.0,90601.0,0.04689339]
[1768017152885,0.03,90614.0,90602.0,0.01073912]
[1768017153122,0.03,90614.0,90601.0,0.05793079]
[1768017154388,0.03,90614.0,90602.0,0.01103728]
[1768017154801,0.03,90613.0,90601.0,0.05793079]
[1768017154946,0.03,90613.0,90602.0,0.01103728]
[1768017155148,0.03,90613.0,90601.0,0.05793079]
[1768017155591,0.03,90613.0,90602.0,0.01103728]
[1768017155744,0.03,90616.0,90602.0,0.01103728]
[1768017155947,0.03,90614.0,90602.0,0.01103728]
[1768017157142,0.03,90613.0,90602.0,0.01103728]
[1768017157731,0.03,90613.0,90601.0,0.04689339]
[1768017158157,0.03,90613.0,90601.0,0.05793079]
[1768017158369,0.03,90612.0,90601.0,0.05793079]
[1768017159438,0.03,90611.0,90601.0,0.05793079]
[1768017159844,0.03,90611.0,90603.0,0.01103716]
[1768017160463,0.03,90610.0,90603.0,0.01103716]
[1768017161507,0.03,90616.0,90603.0,0.01103716]
[1768017163934,0.03,90613.0,90601.0,0.05793079]
[1768017164895,0.03,90612.0,90601.0,0.05793079]
[1768017165097,0.03,90612.0,90604.0,0.01103704]
[1768017165291,0.03,90612.0,90601.0,0.05793079]
[1768017166109,0.03,90616.0,90603.0,0.01103716]
[1768017166317,0.03,90616.0,90605.0,0.01103691]
[1768017166524,0.03,90616.0,90605.0,0.01044064]
[1768017167039,0.03,90616.0,90604.0,0.01103704]
[1768017167249,0.03,90615.0,90604.0,0.01103704]
[1768017168582,0.03311533,90618.0,90604.0,0.01103704]
[1768017168583,0.03,90617.0,90604.0,0.01103704]
[1768017169629,0.03,90617.0,90603.0,0.01103716]
[1768017170106,0.04103545,90617.0,90603.0,0.01103716]
[1768017170966,0.03,90615.0,90602.0,0.01103728]
[1768017171185,0.03,90615.0,90603.0,0.01103716]
[1768017172091,0.03,90616.0,90603.0,0.01103716]
[1768017173069,0.04103557,90616.0,90602.0,0.01103728]
[1768017173641,0.03,90613.0,90602.0,0.01103728]
[1768017173893,0.03,90613.0,90601.0,0.05793079]
[1768017174716,0.03,90614.0,90601.0,0.05793079]
[1768017174900,0.03,90614.0,90602.0,0.01103728]
[1768017175128,0.03,90614.0,90601.0,0.05793079]
[1768017176051,0.01103557,90616.0,90601.0,0.05793079]
[1768017176052,0.03,90613.0,90601.0,0.05793079]
[1768017176269,0.03,90613.0,90602.0,0.01103728]
[1768017177019,0.03,90615.0,90602.0,0.01103728]
[1768017177830,0.03,90615.0,90602.0,0.0576001]
[1768017178034,0.03,90609.0,90602.0,0.01103728]
[1768017178305,0.07693774,90603.0,90602.0,0.01103728]
[1768017178921,0.01497639,90603.0,90602.0,0.01103728]
[1768017179096,0.03828162,90616.0,90603.0,0.01103716]
[1768017179302,0.03,90616.0,90603.0,0.01103716]
[1768017180030,0.03,90616.0,90604.0,0.01103704]
[1768017180231,0.03,90616.0,90603.0,0.05759998]
[1768017181432,0.03828162,90603.0,90602.0,0.01103728]
[1768017181587,0.03,90603.0,90602.0,0.04656282]
[1768017182602,0.0110357,90615.0,90603.0,0.04656282]
[1768017183390,0.01103582,90614.0,90603.0,0.04656282]
[1768017183728,0.01103594,90613.0,90603.0,0.04656282]
[1768017183866,0.01103582,90614.0,90603.0,0.04656282]
[1768017184347,0.0110357,90615.0,90603.0,0.04656282]
[1768017184548,0.01103557,90616.0,90603.0,0.04656282]
[1768017184761,0.01103557,90616.0,90603.0,0.04651808]
[1768017185198,0.0110357,90615.0,90603.0,0.04651808]
[1768017185869,0.01103557,90616.0,90603.0,0.04651808]
[1768017187883,0.0110357,90615.0,90603.0,0.04651808]
[1768017188083,0.01103557,90616.0,90603.0,0.04651808]
[1768017192578,0.01103545,90617.0,90603.0,0.05755524]
[1768017192795,0.03,90616.0,90603.0,0.05755524]
[1768017193937,0.03,90616.0,90604.0,0.0572531]
[1768017194151,0.03,90616.0,90604.0,0.04621606]
[1768017194370,0.03,90615.0,90604.0,0.0572531]
[1768017195000,0.03,90615.0,90604.0,0.04621606]
[1768017195427,0.03,90614.0,90604.0,0.04621606]
[1768017196265,0.03,90614.0,90604.0,0.0572531]
[1768017196556,0.03,90617.0,90604.0,0.0572531]
[1768017197555,0.03,90614.0,90600.0,0.01103752]
[1768017197662,0.03,90614.0,90601.0,0.0110374]
[1768017197864,0.04103582,90614.0,90600.0,0.01103752]
[1768017198064,0.04103582,90614.0,90600.0,0.05725358]
[1768017198492,0.03,90614.0,90601.0,0.0110374]
[1768017198702,0.03,90613.0,90601.0,0.05725346]
[1768017198915,0.03,90613.0,90603.0,0.01103716]
[1768017199450,0.03,90613.0,90604.0,0.01103704]
[1768017199783,0.03,90617.0,90605.0,0.01103691]
[1768017200024,0.03,90617.0,90604.0,0.01103704]
[1768017200417,0.03,90617.0,90606.0,0.04621606]
[1768017200601,0.03,90617.0,90606.0,0.05725285]
[1768017201362,0.03,90617.0,90606.0,0.05720811]
[1768017204123,0.03,90617.0,90607.0,0.04621606]
[1768017204959,0.03,90617.0,90607.0,0.05725273]
[1768017205409,0.03,90617.0,90607.0,0.04621606]
[1768017205950,0.03,90617.0,90607.0,0.05725273]
[1768017208510,0.03,90617.0,90607.0,0.04621606]
[1768017212034,0.03,90615.0,90607.0,0.04621606]
[1768017213032,0.03,90614.0,90607.0,0.04621606]
[1768017214070,0.03,90613.0,90607.0,0.04621606]
[1768017214658,0.03,90613.0,90607.0,0.04617132]
[1768017215090,0.03,90612.0,90602.0,0.02208]
[1768017215262,0.03,90612.0,90602.0,0.03311728]
[1768017215572,0.03,90612.0,90604.0,0.01103704]
[1768017216048,0.03,90617.0,90604.0,0.01103704]
[1768017216901,0.03,90617.0,90605.0,0.01103691]
[1768017217432,0.03841584,90612.0,90606.0,0.01103679]